bitfinex-derivatives/quotes_SOLF0:USTF0_20260210
["timestamp","ask_amount","ask_price","bid_price","bid_amount"]
[1770732372757,11.29119057,84.498,84.463,10.6639]
[1770732374055,10.658,84.51,84.47,10.663]
[1770732374056,14.87994412,84.51,84.47,10.663]
[1770732374251,11.29119057,84.509,84.47,10.663]
[1770732375355,108.78,84.515,84.479,10.6619]
[1770732375555,3.58875355,84.52,84.48,10.69263318]
[1770732375961,3.58875355,84.52,84.485,10.6611]
[1770732376456,109.0,84.528,84.491,10.6603]
[1770732376656,3.58875355,84.53,84.491,10.69263318]
[1770732377763,3.58875355,84.53,84.501,10.6591]
[1770732378465,11.29119057,84.529,84.493,10.66]
[1770732378864,11.29119057,84.529,84.491,10.69263318]
[1770732379065,3.58875355,84.52,84.479,10.69263318]
[1770732379366,11.29119057,84.519,84.479,10.69263318]
[1770732380368,11.29119057,84.519,84.494,10.66]
[1770732381569,11.29119057,84.519,84.486,10.661]
[1770732381766,3.58875355,84.51,84.486,10.661]
[1770732382559,3.58875355,84.5,84.486,10.661]
[1770732382759,5.355e-05,84.5,84.486,10.661]
[1770732382964,3.58875355,84.51,84.486,10.661]
[1770732383165,3.58875355,84.5,84.473,10.6627]
[1770732383364,9.73439736,84.499,84.473,10.6627]
[1770732385671,9.73439736,84.499,84.465,10.6636]
[1770732386368,3.58875355,84.51,84.473,9.85183021]
[1770732386873,3.58875355,84.51,84.476,10.6623]
[1770732387169,3.58875355,84.5,84.451,9.85183021]
[1770732388967,3.58875355,84.5,84.462,9.85183021]
[1770732389166,13.32315091,84.51,84.462,9.85183021]
[1770732389570,13.32315091,84.51,84.475,10.6623]
[1770732389970,3.58875355,84.51,84.475,9.85183021]
[1770732390869,3.58875355,84.51,84.483,10.6613]
[1770732392276,9.73439736,84.524,84.489,10.6606]
[1770732392573,9.73439736,84.524,84.489,20.51243021]
[1770732392975,9.73439736,84.524,84.49,9.85183021]
[1770732395573,3.58875355,84.52,84.49,20.51233021]
[1770732400981,3.58875355,84.52,84.497,9.85183021]
[1770732401284,9.73439736,84.537,84.497,9.85183021]
[1770732401685,3.58875355,84.53,84.497,9.85183021]
[1770732402682,3.58875355,84.53,84.498,10.6595]
[1770732403788,3.58875355,84.53,84.508,10.6582]
[1770732403985,13.32315091,84.54,84.508,10.6582]
[1770732404192,10.6533,84.548,84.48,3.58875355]
[1770732404193,3.58875355,84.53,84.497,9.85183021]
[1770732404783,9.73439736,84.529,84.484,9.85183021]
[1770732404985,9.73439736,84.519,84.473,9.85183021]
[1770732405788,9.73439736,84.519,84.485,10.661]
[1770732407687,3.58875355,84.52,84.488,9.85183021]
[1770732408695,3.58875355,84.52,84.489,10.6606]
[1770732408884,3.58670802,84.52,84.489,10.6606]
[1770732409692,3.58670802,84.52,84.488,9.85183021]
[1770732411596,3.58670802,84.52,84.489,10.6606]
[1770732411797,10.6556,84.529,84.49,9.68529498]
[1770732413999,9.79095007,84.548,84.498,9.68529498]
[1770732414299,3.58670802,84.54,84.498,9.68529498]
[1770732414501,3.58549786,84.54,84.498,9.68529498]
[1770732414698,9.79095007,84.546,84.498,9.68529498]
[1770732415090,9.79095007,84.546,84.513,10.6576]
[1770732415300,9.79095007,84.546,84.508,9.68529498]
[1770732415498,3.58549786,84.54,84.508,9.68529498]
[1770732415798,3.58549786,84.54,84.51,10.658]
[1770732415999,3.58549786,84.54,84.511,9.68529498]
[1770732416392,3.58549786,84.54,84.514,10.6574]
[1770732419499,9.79095007,84.539,84.502,10.6589]
[1770732419694,2.05886703,84.564,84.477,14.54092596]
[1770732419695,13.37644793,84.53,84.489,9.68529498]
[1770732419896,3.58549786,84.52,84.489,9.68529498]
[1770732420600,9.79095007,84.529,84.489,9.68529498]
[1770732420791,9.79095007,84.529,84.493,10.66]
[1770732424200,3.58549786,84.52,84.489,9.68529498]
[1770732424402,9.79095007,84.519,84.483,10.6614]
[1770732424902,3.58549786,84.51,84.482,10.6615]
[1770732425102,3.58549786,84.51,84.477,9.68529498]
[1770732428094,10.6573,84.516,84.477,9.68529498]
[1770732429705,10.6579,84.512,84.477,9.68529498]
[1770732429900,3.58549786,84.51,84.477,9.68529498]
[1770732431100,13.37644793,84.51,84.477,9.68529498]
[1770732432007,3.58549786,84.5,84.473,10.6626]
[1770732433408,9.79095007,84.499,84.466,9.68529498]
[1770732434710,10.6596,84.498,84.466,9.68529498]
[1770732437611,20.45055007,84.498,84.466,9.68529498]
[1770732437810,9.79095007,84.497,84.466,9.68529498]
[1770732441015,10.6588,84.504,84.466,9.68529498]
[1770732442217,10.6595,84.499,84.466,9.68529498]
[1770732444925,10.6595,84.499,84.467,9.02595969]
[1770732446621,9.23102136,84.518,84.474,9.02595969]
[1770732447317,9.23102136,84.511,84.475,10.6623]
[1770732447518,9.23102136,84.509,84.475,10.6623]
[1770732447716,9.23102136,84.509,84.474,9.02595969]
[1770732448722,9.23102136,84.507,84.474,9.02595969]
[1770732449624,9.23102136,84.507,84.474,19.68835969]
[1770732454526,9.23102136,84.507,84.475,9.02595969]
[1770732456227,10.6598,84.496,84.465,9.02595969]
[1770732456427,9.23102136,84.495,84.456,196.2447]
[1770732457127,9.23102136,84.495,84.461,9.02595969]
[1770732457828,9.23102136,84.507,84.465,9.02595969]
[1770732458627,9.23102136,84.489,84.445,9.02595969]
[1770732458828,9.23102136,84.489,84.449,9.02595969]
[1770732459722,9.23102136,84.489,84.451,9.02595969]
[1770732464538,10.6606,84.49,84.453,9.02595969]
[1770732468239,10.6606,84.49,84.44,3.58549786]
[1770732468240,10.6606,84.49,84.455,9.02595969]
[1770732468744,19.89162136,84.49,84.455,9.02595969]
[1770732470944,18.61970339,84.487,84.455,9.02595969]
[1770732472147,7.95870339,84.487,84.455,9.02595969]
[1770732473740,7.95870339,84.487,84.457,19.18379497]
[1770732474251,7.95870339,84.487,84.45,3.58890955]
[1770732474252,7.95870339,84.487,84.46,10.6643]
[1770732474454,7.95870339,84.487,84.458,8.51919497]
[1770732475449,7.95870339,84.509,84.461,8.51919497]
[1770732475855,7.95870339,84.509,84.47,8.51919497]
[1770732477752,18.61700339,84.508,84.47,8.51919497]
[1770732477952,7.95870339,84.507,84.47,8.51919497]
[1770732478752,10.6575,84.515,84.471,8.51919497]
[1770732479157,7.95870339,84.518,84.481,8.51919497]
[1770732480855,7.95870339,84.518,84.484,8.51919497]
[1770732481056,7.95870339,84.528,84.484,8.51919497]
[1770732482864,7.95870339,84.528,84.493,10.6601]
[1770732483257,7.95870339,84.525,84.481,10.6616]
[1770732483457,7.95870339,84.509,84.481,10.6616]
[1770732484461,7.95870339,84.509,84.471,19.18199497]
[1770732485764,7.95870339,84.509,84.432,21.81138894]
[1770732485765,3.58890955,84.49,84.457,8.51919497]
[1770732485959,7.95870339,84.489,84.457,8.51919497]
[1770732487960,7.95870339,84.489,84.452,10.6652]
[1770732489458,7.95870339,84.489,84.452,19.18439497]
[1770732489861,7.95870339,84.489,84.453,8.51919497]
[1770732497165,11.54761294,84.5,84.461,8.51919497]
[1770732497671,7.95870339,84.497,84.462,10.664]
[1770732497973,7.95870339,84.497,84.461,8.51919497]
[1770732498172,11.54761294,84.49,84.451,8.51919497]
[1770732498371,7.95870339,84.488,84.441,8.51919497]
[1770732499666,7.95870339,84.488,84.451,10.6654]
[1770732501673,7.95870339,84.488,84.458,10.6646]
[1770732502565,7.95297815,84.499,84.463,10.6638]
[1770732502972,7.95297815,84.499,84.46,8.19501223]
[1770732503571,7.95297815,84.509,84.465,8.19501223]
[1770732504473,100.26,84.518,84.47,3.58890955]
[1770732504677,7.95297815,84.52,84.481,8.19501223]
[1770732506071,7.95297815,84.533,84.485,8.19501223]
[1770732507273,7.95297815,84.529,84.485,8.19501223]
[1770732507666,7.95297815,84.522,84.485,8.19501223]
[1770732507872,7.95297815,84.519,84.479,10.6619]
[1770732508378,7.95297815,84.517,84.474,8.19501223]
[1770732509772,7.95297815,84.512,84.474,8.19501223]
[1770732511381,7.95297815,84.512,84.476,18.85721223]
[1770732515080,7.95297815,84.51,84.476,8.19501223]
[1770732519477,7.95297815,84.51,84.477,10.6621]
[1770732520186,7.95297815,84.51,84.477,18.85711223]
[1770732520581,7.95297815,84.51,84.478,8.19501223]
[1770732522386,7.95297815,84.51,84.482,10.6614]
[1770732522580,7.95297815,84.51,84.478,8.19501223]
[1770732523290,10.6573,84.516,84.481,8.19501223]
[1770732524189,18.61027815,84.516,84.481,8.19501223]
[1770732525380,7.95297815,84.515,84.481,8.19501223]
[1770732526888,7.95297815,84.513,84.481,8.19501223]
[1770732527089,7.95297815,84.513,84.474,10.6625]
[1770732527695,7.95297815,84.505,84.466,10.6635]
[1770732527992,7.95297815,84.536,84.481,8.19501223]
[1770732528580,7.95297815,84.521,84.486,10.661]
[1770732529188,7.95297815,84.537,84.491,8.19501223]
[1770732529387,7.95297815,84.537,84.501,8.19501223]
[1770732529883,7.16255407,84.548,84.504,7.43383896]
[1770732530790,7.16255407,84.546,84.504,7.43383896]
[1770732530996,7.16255407,84.546,84.491,7.43383896]
[1770732531789,7.16255407,84.542,84.5,18.09303896]
[1770732532886,7.16255407,84.542,84.504,10.6587]
[1770732533395,7.16255407,84.539,84.49,7.43383896]
[1770732533592,7.16255407,84.539,84.496,7.43383896]
[1770732534586,7.16255407,84.537,84.496,7.43383896]
[1770732535191,7.16255407,84.537,84.495,10.6598]
[1770732537494,7.16255407,84.537,84.495,18.09363896]
[1770732537704,10.6547,84.536,84.499,7.43383896]
[1770732539394,7.16255407,84.535,84.499,7.43383896]
[1770732539598,7.16255407,84.533,84.49,14.24518369]
[1770732540101,7.16255407,84.533,84.495,7.43383896]
[1770732540306,10.6544,84.539,84.495,7.43383896]
[1770732540707,17.81695407,84.539,84.495,7.43383896]
[1770732540908,10.6546,84.537,84.495,7.43383896]
[1770732541704,17.81715407,84.537,84.495,7.43383896]
[1770732541911,7.16255407,84.533,84.495,7.43383896]
[1770732542711,10.6553,84.532,84.495,7.43383896]
[1770732542906,7.16255407,84.529,84.481,7.43383896]
[1770732543210,7.16255407,84.519,84.481,7.43383896]
[1770732543612,7.16255407,84.509,84.47,7.43383896]
[1770732544011,7.16255407,84.499,84.451,7.43383896]
[1770732544211,3.58466574,84.49,84.455,10.6649]
[1770732544515,7.16255407,84.489,84.455,10.6649]
[1770732547511,10.6595,84.499,84.46,18.09813896]
[1770732547712,17.82205407,84.499,84.46,18.09813896]
[1770732547917,7.16255407,84.498,84.46,18.09813896]
[1770732548220,7.16255407,84.498,84.46,7.43383896]
[1770732548716,17.82255407,84.495,84.46,7.43383896]
[1770732549321,7.16255407,84.494,84.46,7.43383896]
[1770732551720,7.16255407,84.489,84.453,10.6651]
[1770732553519,3.58466574,84.48,84.449,7.43383896]
[1770732553721,10.74721981,84.48,84.449,7.43383896]
[1770732554720,94.46,84.512,84.451,7.43383896]
[1770732554721,7.16255407,84.511,84.451,7.43383896]
[1770732554912,7.16255407,84.509,84.451,7.43383896]
[1770732555322,10.74721981,84.5,84.451,7.43383896]
[1770732555721,10.66,84.495,84.457,7.43383896]
[1770732557029,10.6587,84.505,84.465,7.43383896]
[1770732558025,7.16255407,84.51,84.475,18.09623896]
[1770732558223,7.16255407,84.51,84.476,7.43383896]
[1770732558526,7.16255407,84.519,84.476,7.43383896]
[1770732559118,10.6571,84.518,84.476,7.43383896]
[1770732560122,10.6559,84.527,84.481,7.11227633]
[1770732561021,7.22168758,84.528,84.491,7.11227633]
[1770732561526,10.6546,84.537,84.491,7.11227633]
[1770732561922,7.04741628,84.536,84.491,7.11227633]
[1770732562428,7.04741628,84.536,84.48,3.58466574]
[1770732562429,7.04741628,84.536,84.494,7.21465611]
[1770732564325,7.04741628,84.536,84.496,7.21465611]
[1770732565035,10.655,84.534,84.496,7.21465611]
[1770732565235,17.70241628,84.534,84.496,7.21465611]
[1770732566532,7.04741628,84.533,84.496,7.21465611]
[1770732567531,7.04741628,84.529,84.488,7.21465611]
[1770732568036,7.04741628,84.529,84.491,10.6603]
[1770732569438,7.04741628,84.528,84.491,10.6603]
[1770732569628,7.04741628,84.527,84.491,10.6603]
[1770732570332,7.04741628,84.526,84.491,10.6603]
[1770732572735,7.04741628,84.526,84.488,7.21465611]
[1770732573038,7.04741628,84.524,84.488,7.21465611]
[1770732574142,3.58466574,84.53,84.488,7.21465611]
[1770732574340,115.14,84.53,84.488,7.21465611]
[1770732574942,115.14,84.53,84.497,7.21465611]
[1770732581646,115.14,84.53,84.5,7.21465611]
[1770732582844,115.14,84.53,84.501,10.6591]
[1770732585947,7.04741628,84.548,84.508,7.21465611]
[1770732586151,1.628e-05,84.548,84.511,7.21465611]
[1770732587847,103.3,84.559,84.522,10.6565]
[1770732588052,7.04741628,84.558,84.522,10.6565]
[1770732588749,7.04741628,84.558,84.533,10.6551]
[1770732590542,103.3,84.559,84.533,17.87679915]
[1770732590747,7.37484805,84.57,84.539,10.6542]
[1770732590748,7.37484805,84.569,84.539,10.6542]
[1770732592054,3.58235346,84.58,84.544,10.6536]
[1770732592248,7.37484805,84.579,84.544,10.6536]
[1770732594952,7.37484805,84.579,84.553,10.6525]
[1770732595652,3.58235346,84.59,84.553,17.87419915]
[1770732595953,1.16247627,84.588,84.514,7.22169915]
[1770732596146,3.58235346,84.55,84.514,7.22169915]
[1770732596345,124.44,84.559,84.514,7.22169915]
[1770732596655,124.44,84.559,84.516,7.22169915]
[1770732597150,3.58235346,84.57,84.521,7.22169915]
[1770732597552,1.17015079,84.575,84.521,7.22169915]
[1770732597553,3.58235346,84.56,84.521,7.22169915]
[1770732597753,1.17015079,84.575,84.521,7.22169915]
[1770732597754,3.58235346,84.57,84.521,7.22169915]
[1770732598857,3.58235346,84.57,84.524,7.47329186]
[1770732601153,3.58235346,84.57,84.526,7.33434327]
[1770732601360,3.58235346,84.58,84.526,7.33434327]
[1770732601553,3.58235346,84.58,84.531,7.33434327]
[1770732602762,0.48272669,84.587,84.535,7.34713134]
[1770732602958,125.28,84.591,84.541,7.34713134]
[1770732603155,0.47197417,84.598,84.551,7.34713134]
[1770732603354,125.32,84.61,84.551,7.34713134]
[1770732603555,3.58235346,84.62,84.564,7.34713134]
[1770732604366,3.58235346,84.62,84.582,7.38690582]
[1770732604562,3.58235346,84.61,84.582,7.38690582]
[1770732604862,3.58235346,84.6,84.561,7.38690582]
[1770732605560,3.58235346,84.6,84.504,35.54]
[1770732605561,5.346e-05,84.58,84.549,7.38683619]
[1770732606462,5.346e-05,84.58,84.552,10.6526]
[1770732606860,94.38,84.603,84.504,14.60251239]
[1770732606861,0.64063247,84.579,84.504,14.60251239]
[1770732607061,94.38,84.581,84.504,12.60345039]
[1770732607364,3.58235346,84.57,84.521,12.60345039]
[1770732607565,3.58235346,84.59,84.531,12.60345039]
[1770732607768,3.58235346,84.6,84.541,12.86002453]
[1770732608162,3.58235346,84.59,84.541,12.86002453]
[1770732608363,3.58235346,84.59,84.545,12.86002453]
[1770732610168,3.58235346,84.59,84.549,10.653]
[1770732610366,3.58235346,84.59,84.549,23.12619101]
[1770732612870,3.58235346,84.59,84.55,12.56845684]
[1770732613469,3.58235346,84.58,84.55,12.56845684]
[1770732613868,3.58235346,84.57,84.521,12.57355353]
[1770732614267,10.6506,84.569,84.521,12.57355353]
[1770732614570,3.58235346,84.56,84.521,12.57355353]
[1770732616570,10.6506,84.569,84.521,12.57355353]
[1770732618576,10.6515,84.562,84.521,12.57355353]
[1770732620682,3.58264678,84.57,84.527,12.51304238]
[1770732621078,10.6503,84.572,84.527,12.51304238]
[1770732621789,10.6484,84.587,84.544,12.51220311]
[1770732621983,3.58264678,84.58,84.544,12.51220311]
[1770732623684,10.6497,84.577,84.544,12.51220311]
[1770732627990,3.58264678,84.59,84.546,12.50992426]
[1770732628390,10.6482,84.588,84.546,12.50992426]
[1770732628687,35.54,84.629,84.512,133.4]
[1770732628688,3.58264678,84.6,84.551,12.50992426]
[1770732629393,3.58264678,84.61,84.551,12.50992426]
[1770732629693,10.6469,84.598,84.556,10.6522]
[1770732629887,10.6469,84.598,84.557,12.40330011]
[1770732632497,10.6469,84.598,84.524,96.22]
[1770732632498,3.58264678,84.59,84.545,12.38405158]
[1770732632796,11.02318992,84.627,84.545,12.38405158]
[1770732632797,3.58264678,84.6,84.545,12.38405158]
[1770732632997,3.58264678,84.6,84.558,10.6518]
[1770732633397,3.58264678,84.6,84.559,12.3838712]
[1770732633794,3.58264678,84.61,84.56,10.6516]
[1770732633998,11.02318992,84.641,84.561,12.34864761]
[1770732634197,124.32,84.646,84.571,12.34864761]
[1770732634399,124.32,84.646,84.57,3.58264678]
[1770732634400,14.22564678,84.63,84.581,12.34864761]
[1770732634603,100.24,84.647,84.581,12.34864761]
[1770732634794,3.58264678,84.64,84.581,12.34864761]
[1770732634995,3.58264678,84.63,84.581,12.34864761]
[1770732635193,2.05693818,84.644,84.61,12.34845994]
[1770732635491,3.58264678,84.65,84.611,12.34845994]
[1770732635695,3.58264678,84.63,84.596,12.29346626]
[1770732636397,3.58264678,84.63,84.584,12.29346626]
[1770732636601,3.58264678,84.62,84.584,12.29346626]
[1770732638403,3.58264678,84.61,84.571,12.02949882]
[1770732638595,3.58264678,84.6,84.572,10.6502]
[1770732638906,3.58264678,84.61,84.572,22.67969882]
[1770732642105,3.58264678,84.6,84.572,12.02949882]
[1770732642304,3.58264678,84.6,84.559,22.67316569]
[1770732642499,3.58264678,84.6,84.56,12.02146569]
[1770732643007,3.58264678,84.59,84.56,12.02146569]
[1770732643606,94.36,84.622,84.56,12.02146569]
[1770732643904,3.58264678,84.6,84.56,12.02146569]
[1770732644701,10.6468,84.599,84.56,12.02146569]
[1770732646795,3.58264678,84.59,84.56,12.02146569]
[1770732647602,14.22934678,84.6,84.56,12.02146569]
[1770732648908,10.6467,84.6,84.56,12.02146569]
[1770732649113,10.6457,84.608,84.56,12.02146569]
[1770732649405,10.6457,84.608,84.561,12.00777693]
[1770732649804,10.6468,84.599,84.561,12.00777693]
[1770732651907,3.58264678,84.6,84.561,12.00777693]
[1770732651908,10.6479,84.59,84.561,12.00777693]
[1770732652102,14.23054678,84.59,84.547,11.85676152]
[1770732652299,3.58264678,84.6,84.547,11.85676152]
[1770732652499,3.58264678,84.59,84.548,11.85676152]
[1770732652704,3.58264678,84.57,84.535,11.85676152]
[1770732653007,14.23024354,84.59,84.547,11.85646435]
[1770732653211,3.58224354,84.58,84.547,11.85646435]
[1770732653708,10.6495,84.578,84.547,11.85646435]
[1770732654409,3.58224354,84.58,84.547,11.85646435]
[1770732656710,10.6482,84.588,84.547,11.85646435]
[1770732656912,3.58224354,84.58,84.547,11.85646435]
[1770732657910,3.58224354,84.57,84.534,11.95287627]
[1770732658311,3.58224354,84.58,84.534,11.95287627]
[1770732658913,10.6494,84.579,84.536,10.6547]
[1770732659216,10.6494,84.579,84.537,11.95262257]
[1770732659615,10.6511,84.565,84.537,11.95262257]
[1770732660415,10.6521,84.557,84.517,10.6571]
[1770732660614,3.58187721,84.55,84.518,12.0056669]
[1770732661019,3.58187721,84.57,84.518,12.0056669]
[1770732661706,21.295,84.594,84.518,12.0056669]
[1770732661707,3.58187721,84.56,84.518,12.0056669]
[1770732661910,3.58187721,84.55,84.518,12.0056669]
[1770732662420,35.54,84.593,84.49,3.58187721]
[1770732662421,3.58187721,84.54,84.49,3.58187721]
[1770732662619,3.58187721,84.54,84.48,3.58187721]
[1770732663122,3.58187721,84.53,84.48,3.58187721]
[1770732663314,10.6557,84.529,84.484,10.6612]
[1770732663505,3.58187721,84.53,84.484,10.6612]
[1770732663712,3.58187721,84.54,84.49,3.58187721]
[1770732664219,3.58187721,84.54,84.494,7.7488907]
[1770732664719,21.3003,84.573,84.481,7.7488907]
[1770732664720,3.58187721,84.53,84.481,7.7488907]
[1770732665324,10.6548,84.536,84.484,7.7488907]
[1770732665621,6.95922633,84.55,84.501,7.7488907]
[1770732666017,6.95922633,84.55,84.504,7.7488907]
[1770732666225,10.6525,84.554,84.511,7.7488907]
[1770732667119,3.2149499,84.563,84.514,7.7488907]
[1770732667319,10.6513,84.564,84.52,3.58187721]
[1770732667519,10.6513,84.564,84.521,7.7488907]
[1770732669311,10.6524,84.555,84.521,7.7488907]
[1770732670613,10.6535,84.546,84.51,3.58187721]
[1770732670819,3.58187721,84.53,84.492,7.7488907]
[1770732671116,3.1841691,84.539,84.492,7.7488907]
[1770732671420,10.6557,84.529,84.492,7.7488907]
[1770732671622,3.58187721,84.52,84.471,7.7488907]
[1770732672722,10.657,84.519,84.471,7.7488907]
[1770732674314,10.657,84.519,84.481,7.7488907]
[1770732674715,10.6559,84.527,84.481,7.7488907]
[1770732675023,3.58187721,84.54,84.49,3.58187721]
[1770732675221,3.58187721,84.54,84.491,7.7488907]
[1770732676120,10.6549,84.535,84.494,7.7488907]
[1770732676314,10.6549,84.535,84.501,7.7488907]
[1770732681025,7.2842928,84.539,84.48,3.58187721]
[1770732681326,7.2842928,84.539,84.49,3.58187721]
[1770732681521,3.58187721,84.55,84.5,3.58187721]
[1770732681721,7.78308719,84.552,84.5,3.58187721]
[1770732681722,10.6535,84.546,84.5,3.58187721]
[1770732681919,7.78308719,84.569,84.51,3.58187721]
[1770732682123,7.78308719,84.569,84.52,3.58187721]
[1770732683026,7.78308719,84.569,84.521,7.53541556]
[1770732683428,10.6509,84.567,84.521,7.53541556]
[1770732684131,10.6509,84.567,84.531,7.53541556]
[1770732685931,10.6522,84.557,84.514,7.53541556]
[1770732686227,3.58187721,84.56,84.514,7.53541556]
[1770732686228,7.78308719,84.559,84.514,7.53541556]
[1770732686525,10.6531,84.55,84.514,7.53541556]
[1770732686921,10.6531,84.55,84.5,11.11729277]
[1770732687124,10.6531,84.55,84.439,35.54]
[1770732687125,7.78308719,84.529,84.474,7.53541556]
[1770732687425,7.78308719,84.529,84.48,3.58187721]
[1770732687629,10.6567,84.521,84.48,3.58187721]
[1770732687831,10.6567,84.521,84.474,7.53541556]
[1770732690929,18.43878719,84.529,84.476,7.53541556]
[1770732691629,18.43878719,84.529,84.485,7.53541556]
[1770732692738,10.6557,84.529,84.485,7.53541556]
[1770732695034,18.43708719,84.542,84.488,7.53541556]
[1770732695934,10.654,84.542,84.501,7.53541556]
[1770732696123,10.6529,84.551,84.501,7.53541556]
[1770732697734,10.6529,84.551,84.49,9.60612527]
[1770732697735,10.6529,84.551,84.505,7.53541556]
[1770732698827,10.6529,84.551,84.506,10.6585]
[1770732700430,10.6535,84.547,84.506,10.6585]
[1770732700634,7.78308719,84.546,84.506,10.6585]
[1770732703337,10.6524,84.555,84.512,7.53541556]
[1770732703542,7.78308719,84.559,84.512,7.53541556]
[1770732704834,7.78308719,84.559,84.523,10.6564]
[1770732705040,10.6512,84.565,84.524,7.53541556]
[1770732705543,7.78308719,84.572,84.49,24.10693105]
[1770732705544,7.78308719,84.572,84.526,7.53541556]
[1770732706937,10.6504,84.571,84.53,18.19081556]
[1770732707138,10.6504,84.571,84.53,7.53541556]
[1770732707943,18.43348719,84.571,84.53,7.53541556]
[1770732708938,18.43348719,84.571,84.53,11.11727519]
[1770732709846,18.43348719,84.571,84.531,10.6553]
[1770732710441,10.6489,84.583,84.541,7.93354587]
[1770732711840,10.6489,84.583,84.543,7.93354587]
[1770732715444,8.08954264,84.579,84.543,7.93354587]
[1770732715636,8.08954264,84.579,84.542,10.6539]
[1770732719049,11.67016559,84.59,84.546,7.93354587]
[1770732719250,8.08954264,84.599,84.551,7.93354587]
[1770732719641,8.08954264,84.596,84.553,10.6525]
[1770732720846,10.6474,84.595,84.553,10.6525]
[1770732721353,18.73694264,84.595,84.553,10.6525]
[1770732721655,8.08954264,84.594,84.553,10.6525]
[1770732722359,8.08954264,84.589,84.551,7.93354587]
[1770732722549,8.08954264,84.589,84.546,10.6534]
[1770732722949,3.58062295,84.58,84.538,18.58794587]
[1770732723151,8.08954264,84.579,84.538,18.58794587]
[1770732723847,8.08954264,84.579,84.538,10.6544]
[1770732724848,8.08954264,84.559,84.52,7.93354587]
[1770732726758,8.08954264,84.559,84.523,10.6563]
[1770732729460,10.6515,84.562,84.527,7.93354587]
[1770732734258,8.08954264,84.561,84.527,7.93354587]
[1770732736357,10.6521,84.557,84.515,18.59084587]
[1770732736557,8.08954264,84.556,84.516,7.93354587]
[1770732737154,8.08954264,84.556,84.52,10.6567]
[1770732741466,7.91583967,84.568,84.527,10.6558]
[1770732741663,7.91583967,84.568,84.521,7.98855435]
[1770732742766,7.91583967,84.566,84.521,7.98855435]
[1770732743870,7.91583967,84.563,84.521,7.98855435]
[1770732744761,7.91583967,84.561,84.521,7.98855435]
[1770732746269,3.58062295,84.56,84.521,7.98855435]
[1770732746472,11.49646262,84.56,84.521,7.98855435]
[1770732747771,10.652,84.558,84.521,7.98855435]
[1770732747968,18.56783967,84.558,84.521,7.98855435]
[1770732748169,7.91583967,84.557,84.521,7.98855435]
[1770732748770,7.91583967,84.557,84.522,10.6564]
[1770732752170,7.91583967,84.549,84.51,18.64645435]
[1770732752373,3.58062295,84.54,84.49,3.58062295]
[1770732752580,7.91583967,84.539,84.491,7.98855435]
[1770732753674,7.91583967,84.534,84.493,10.6601]
[1770732755679,7.91583967,84.534,84.505,10.6586]
[1770732757774,7.91583967,84.534,84.497,10.6596]
[1770732758783,7.91583967,84.529,84.493,7.98855435]
[1770732760086,10.6558,84.528,84.493,7.98855435]
[1770732764278,18.57193967,84.526,84.493,7.98855435]
[1770732766884,7.91583967,84.521,84.487,450.66211192]
[1770732767081,7.91583967,84.521,84.485,7.98855435]
[1770732768589,7.91583967,84.521,84.486,10.661]
[1770732769390,7.91583967,84.516,84.472,7.98855435]
[1770732770294,7.91583967,84.516,84.474,7.93918755]
[1770732771795,10.6581,84.51,84.474,7.93918755]
[1770732771993,8.29254608,84.527,84.48,3.58062295]
[1770732772193,8.29254608,84.527,84.481,7.93918755]
[1770732772686,10.6564,84.524,84.483,10.6614]
[1770732772885,8.29254608,84.527,84.484,7.93918755]
[1770732773788,10.657,84.519,84.484,7.93918755]
[1770732776187,8.29254608,84.516,84.484,7.93918755]
[1770732779894,8.29254608,84.527,84.487,7.93918755]
[1770732780090,8.29254608,84.527,84.491,7.93918755]
[1770732781395,8.29254608,84.52,84.481,10.6616]
[1770732781993,8.29254608,84.52,84.479,7.93918755]
[1770732782700,8.29254608,84.518,84.483,10.6614]
[1770732785690,8.29254608,84.518,84.483,18.60058755]
[1770732788596,8.29254608,84.518,84.484,7.93918755]
[1770732788793,10.6573,84.516,84.484,7.93918755]
[1770732789594,8.29254608,84.506,84.47,3.58651853]
[1770732789794,8.29254608,84.506,84.467,7.93918755]
[1770732790001,8.29254608,84.517,84.471,7.93918755]
[1770732791702,10.658,84.511,84.473,7.93918755]
[1770732792298,10.6588,84.504,84.473,7.93918755]
[1770732792497,8.29254608,84.517,84.473,7.93918755]
[1770732792695,8.29254608,84.53,84.48,3.58651853]
[1770732792895,10.6576,84.514,84.481,7.93918755]
[1770732793794,8.29254608,84.51,84.471,7.93918755]
[1770732794802,10.6583,84.508,84.471,7.93918755]
[1770732795799,10.6583,84.508,84.473,10.6627]
[1770732796004,10.6583,84.508,84.474,7.93918755]
[1770732797707,8.29254608,84.51,84.474,7.93918755]
[1770732798510,8.29254608,84.506,84.466,7.93918755]
[1770732799209,8.29254608,84.506,84.449,14.50080578]